fUST/lending_fUST_20260201
["ID","MTS","AMOUNT","RATE_DAILY","PERIOD"]
[404155754,1769885443928,-160.0,0.00039945,120]
[404155755,1769885443937,-503.84171,0.00039969,60]
[404155756,1769885443946,-1926.93823251,0.0004,120]
[404155757,1769885443955,-13061.5759127,0.00040136,2]
[404155759,1769885443965,-393.72,0.00040273,38]
[404155761,1769885443974,-167.0,0.00040568,120]
[404155762,1769885443983,-196.0,0.00040578,120]
[404155763,1769885443993,-632.55739988,0.00040618,120]
[404155764,1769885444002,-667.2838562,0.00040707,2]
[404155765,1769885444011,-619.49,0.00040993,120]
[404155766,1769885444021,-393.72,0.00041095,39]
[404155767,1769885444030,-948.28,0.00041096,120]
[404155768,1769885444040,-367.20317245,0.00041096,31]
[404155769,1769885444050,-161.75457638,0.000411,120]
[404155770,1769885444059,-161.75457638,0.000411,120]
[404155771,1769885444068,-161.75457638,0.000411,120]
[404155772,1769885444077,-161.75457638,0.000411,120]
[404155773,1769885444086,-234.43920214,0.000411,120]
[404155774,1769885444095,-234.43920214,0.000411,120]
[404155775,1769885444104,-234.43920214,0.000411,120]
[404155776,1769885444114,-234.43920214,0.000411,120]
[404155777,1769885444123,-234.43920214,0.000411,120]
[404155778,1769885444137,-234.43920214,0.000411,120]
[404155779,1769885444146,-234.43920214,0.000411,120]
[404155780,1769885444156,-234.43920214,0.000411,120]
[404155781,1769885444165,-234.43920214,0.000411,120]
[404155782,1769885444175,-234.43920214,0.000411,120]
[404155783,1769885444184,-246.48334857,0.000411,120]
[404155784,1769885444193,-246.48334857,0.000411,120]
[404155785,1769885444203,-246.48334857,0.000411,120]
[404155786,1769885444212,-246.48334857,0.000411,120]
[404155787,1769885444221,-246.48334857,0.000411,120]
[404155788,1769885444231,-246.48334857,0.000411,120]
[404155789,1769885444240,-246.48334857,0.000411,120]
[404155790,1769885444250,-246.48334857,0.000411,120]
[404155791,1769885444259,-246.48334857,0.000411,120]
[404155792,1769885444268,-246.48334857,0.000411,120]
[404155793,1769885444279,-234.43920214,0.00041259,120]
[404155794,1769885444289,-246.48334857,0.00041259,120]
[404155795,1769885444298,-161.75457638,0.0004131,120]
[404155796,1769885444308,-242.8396667,0.000415,120]
[404155797,1769885444319,-153.5789033,0.00041539,14]
[404155798,1769885444328,-168.08,0.000416,14]
[404155799,1769885444338,-2914.4315251,0.00041657,2]
[404155800,1769885444347,-234.43920214,0.00041713,120]
[404155801,1769885444357,-246.48334857,0.00041713,120]
[404155802,1769885444367,-393.72,0.00041917,40]
[404155803,1769885444376,-617.93043829,0.00042,120]
[404155804,1769885444388,-2000.0,0.00042112,120]
[404155805,1769885444398,-234.43920214,0.00042166,120]
[404155806,1769885444407,-246.48334857,0.00042166,120]
[404155807,1769885444417,-2541.5114,0.00042192,30]
[404155808,1769885444426,-586.02,0.000423,120]
[404155809,1769885444435,-161.75457638,0.00042317,120]
[404155810,1769885444444,-152.38,0.00042396,120]
[404155811,1769885444453,-586.02,0.000424,120]
[404155812,1769885444463,-5580.52,0.000424,14]
[404155813,1769885444473,-811.16,0.000424,30]
[404155814,1769885444482,-152.38,0.00042496,120]
[404155815,1769885444493,-586.02,0.000425,120]
[404155816,1769885444503,-5138.62147304,0.000425,120]
[404155817,1769885444513,-152.38,0.00042596,120]
[404155818,1769885444522,-167.0,0.00042597,120]
[404155819,1769885444531,-586.02,0.000426,120]
[404155820,1769885444541,-196.0,0.00042607,120]
[404155821,1769885444550,-668.5891505,0.00042618,120]
[404155822,1769885444560,-234.43920214,0.0004262,120]
[404155823,1769885444570,-246.48334857,0.0004262,120]
[404155824,1769885444579,-1843.62709257,0.00042655,2]
[404155825,1769885444589,-152.38,0.00042696,120]
[404155826,1769885444598,-586.02,0.000427,120]
[404155827,1769885444608,-2481.90166753,0.000427,120]
[404155828,1769885444618,-393.72,0.00042739,41]
[404155829,1769885444631,-152.38,0.00042796,120]
[404155830,1769885444642,-586.02,0.000428,120]
[404155831,1769885444652,-1000.0,0.00042813,60]
[404155832,1769885444663,-1000.0,0.00042813,60]
[404155833,1769885444672,-1000.0,0.00042813,60]
[404155834,1769885444681,-152.38,0.00042896,120]
[404155835,1769885444690,-586.02,0.000429,120]
[404155836,1769885444702,-152.38,0.00042996,120]
[404155837,1769885444711,-586.02,0.00043,120]
[404155838,1769885444720,-506.78,0.00043,120]
[404155839,1769885444730,-234.43920214,0.00043073,120]
[404155840,1769885444739,-246.48334857,0.00043073,120]
[404155841,1769885444749,-152.38,0.00043096,120]
[404155842,1769885444758,-586.02,0.000431,120]
[404155843,1769885444767,-152.38,0.00043196,120]
[404155844,1769885444776,-586.02,0.000432,120]
[404155845,1769885444785,-3564.7290981,0.00043218,2]
[404155846,1769885444795,-271.2486833,0.00043232,2]
[404155847,1769885444804,-189.9503656,0.00043289,30]
[404155848,1769885444813,-155.3532582,0.00043289,30]
[404155849,1769885444822,-378.942317,0.00043289,30]
[404155850,1769885444832,-378.942317,0.00043289,30]
[404155851,1769885444841,-378.942317,0.00043289,30]
[404155852,1769885444850,-378.942317,0.00043289,30]
[404155853,1769885444859,-378.942317,0.00043289,30]
[404155854,1769885444869,-378.942317,0.00043289,30]
[404155855,1769885444881,-378.942317,0.00043289,30]
[404155856,1769885444891,-378.942317,0.00043289,30]
[404155857,1769885444901,-378.942317,0.00043289,30]
[404155858,1769885444910,-378.942317,0.00043289,30]
[404155859,1769885444919,-378.942317,0.00043289,30]
[404155860,1769885444928,-378.942317,0.00043289,30]
[404155861,1769885444937,-378.942317,0.00043289,30]
[404155862,1769885444947,-378.942317,0.00043289,30]
[404155863,1769885444956,-263.2774349,0.00043289,30]
[404155864,1769885444966,-152.38,0.00043296,120]
[404155865,1769885444975,-586.02,0.000433,120]
[404155866,1769885444984,-232.71,0.0004332,120]
[404155867,1769885444994,-194.7961003,0.00043324,30]
[404155868,1769885445003,-153.0,0.00043324,30]
[404155869,1769885445014,-194.7961003,0.00043324,30]
[404155870,1769885445024,-194.7961003,0.00043324,30]
[404155871,1769885445033,-194.7961003,0.00043324,30]
[404155872,1769885445042,-194.5782368,0.00043324,30]
[404155873,1769885445051,-190.1686076,0.00043324,30]
[404155874,1769885445061,-161.75457638,0.00043325,120]
[404155875,1769885445070,-152.38,0.00043396,120]
[404155876,1769885445079,-586.02,0.000434,120]
[404155877,1769885445087,-490.78809482,0.00043438,2]
[404155878,1769885445096,-152.38,0.00043496,120]
[404155879,1769885445105,-586.02,0.000435,120]
[404155880,1769885445115,-23375.27127857,0.000435,120]
[404155881,1769885445125,-234.43920214,0.00043526,120]
[404155882,1769885445137,-246.48334857,0.00043526,120]
[404155883,1769885445147,-393.72,0.00043561,42]
[404155884,1769885445156,-152.38,0.00043596,120]
[404155885,1769885445166,-586.02,0.000436,120]
[404155886,1769885445175,-152.38,0.00043696,120]
[404155887,1769885445185,-586.02,0.000437,120]
[404155888,1769885445195,-152.38,0.00043796,120]
[404155889,1769885445204,-586.02,0.000438,120]
[404155890,1769885445214,-169.16,0.000438,14]
[404155891,1769885445224,-152.38,0.00043896,120]
[404155892,1769885445233,-586.02,0.000439,120]
[404155893,1769885445243,-5580.52,0.000439,14]
[404155894,1769885445252,-234.43920214,0.0004398,120]
[404155895,1769885445262,-246.48334857,0.0004398,120]
[404155896,1769885445271,-152.38,0.00043996,120]
[404155897,1769885445280,-586.02,0.00044,120]
[404155898,1769885445290,-5418.55,0.00044,14]
[404155899,1769885445300,-152.38,0.00044096,120]
[404155900,1769885445309,-586.02,0.000441,120]
[404155901,1769885445319,-152.38,0.00044196,120]
[404155902,1769885445329,-586.02,0.000442,120]
[404155903,1769885445339,-667.2838562,0.0004428,2]
[404155904,1769885445348,-152.38,0.00044296,120]
[404155905,1769885445358,-586.02,0.000443,120]
[404155906,1769885445368,-161.75457638,0.00044332,120]
[404155907,1769885445380,-393.72,0.00044383,43]
[404155908,1769885445389,-152.38,0.00044396,120]
[404155909,1769885445399,-586.02,0.000444,120]
[404155911,1769885445408,-5418.55,0.000444,14]
[404155913,1769885445418,-234.43920214,0.00044433,120]
[404155915,1769885445427,-246.48334857,0.00044433,120]
[404155916,1769885445436,-152.70196406,0.00044496,120]
[404155917,1769885445446,-586.02,0.000445,120]
[404155918,1769885445455,-586.02,0.000446,120]
[404155919,1769885445464,-704.62090113,0.00044618,120]
[404155920,1769885445474,-586.02,0.000447,120]
[404155921,1769885445484,-811.16,0.000447,30]
[404155922,1769885445494,-167.0,0.00044727,120]
[404155923,1769885445504,-196.0,0.00044738,120]
[404155925,1769885445513,-586.02,0.000448,120]
[404155926,1769885445523,-157.34,0.000448,14]
[404155927,1769885445533,-795.3985745,0.00044814,2]
[404155929,1769885445543,-271.3819657,0.00044823,2]
[404155931,1769885445553,-284.49178705,0.00044852,120]
[404155933,1769885445563,-234.43920214,0.00044887,120]
[404155935,1769885445572,-246.48334857,0.00044887,120]
[404155936,1769885445582,-586.02,0.000449,120]
[404155937,1769885445592,-346.02642722,0.000449,120]
[404155938,1769885445602,-407.54018358,0.0004498,2]
[404155939,1769885445611,-586.02,0.00045,120]
[404155940,1769885445623,-470.10511823,0.00045,120]
[404155941,1769885445638,-882.68024102,0.00045,20]
[404155942,1769885445648,-5499.999998,0.00045,30]
[404155943,1769885445658,-506.22578161,0.00045,120]
[404155944,1769885445668,-297.51817477,0.00045,120]
[404155945,1769885445679,-921.45810344,0.00045,120]
[404155946,1769885445689,-10699.999999,0.00045,120]
[404155947,1769885445702,-153.2212852,0.00045043,2]
[404155948,1769885445712,-586.02,0.000451,120]
[404155949,1769885445722,-2048.5367224,0.00045152,2]
[404155951,1769885445733,-586.02,0.000452,120]
[404155953,1769885445742,-393.72,0.00045205,44]
[404155954,1769885445753,-586.02,0.000453,120]
[404155955,1769885445763,-161.75,0.0004534,120]
[404155956,1769885445774,-234.43,0.0004534,120]
[404155957,1769885445784,-246.48,0.0004534,120]
[404155958,1769885445794,-434.31743547,0.000454,120]
[404155959,1769885445804,-1250.97344488,0.000454,2]
[404155960,1769885445814,-202858.2811,0.0004544,30]
[404155961,1769885445824,-155.88,0.000455,14]
[404155962,1769885445833,-731.18880521,0.00045725,2]
[404155963,1769885445843,-271.74125511,0.00046,30]
[404155964,1769885445852,-1204.08889721,0.00046,120]
[404155965,1769885445862,-393.72,0.00046027,45]
[404155967,1769885445872,-221.935,0.00046168,76]
[404155968,1769885445887,-2547.28,0.00046549,13]
[404155970,1769885445897,-369.0,0.0004655,120]
[404155972,1769885445907,-740.65265175,0.00046618,120]
[404155973,1769885445917,-393.72,0.00046849,46]
[404155974,1769885445926,-167.0,0.00046963,120]
[404155975,1769885445936,-196.0,0.00046975,120]
[404155977,1769885445946,-210.94746584,0.00047,120]
[404155978,1769885445956,-1000.0,0.00047095,120]
[404155979,1769885445966,-1000.0,0.00047095,120]
[404155980,1769885445976,-1000.0,0.00047095,120]
[404155981,1769885445986,-715.0,0.00047095,120]
[404155982,1769885445996,-531.3,0.00047371,13]
[404155983,1769885446005,-393.72,0.00047671,47]
[404155984,1769885446015,-352.55471768,0.00048,120]
[404155985,1769885446025,-3199.21,0.00048193,13]
[404155986,1769885446035,-393.72,0.00048493,48]
[404155987,1769885446045,-776.68440238,0.00048618,120]
[404155989,1769885446054,-1397.0,0.00048767,120]
[404155990,1769885446063,-378.942317,0.00048884,30]
[404155991,1769885446073,-378.942317,0.00048884,30]
[404155992,1769885446082,-373.0599467,0.00048888,30]
[404155993,1769885446092,-4759.4837998,0.000489,120]
[404155994,1769885446102,-316.89428754,0.00049,15]
[404155996,1769885446112,-7386.03,0.00049015,13]
[404155998,1769885446122,-167.0,0.00049311,120]
[404155999,1769885446134,-262.79336981,0.00049315,120]
[404156000,1769885446145,-393.72,0.00049315,49]
[404156002,1769885446237,-299.0,0.00049315,120]
[404156003,1769885446247,-299.0,0.00049315,120]
[404156004,1769885446257,-299.0,0.00049315,120]
[404156005,1769885446267,-299.0,0.00049315,120]
[404156006,1769885446276,-299.0,0.00049315,120]
[404156007,1769885446286,-299.0,0.00049315,120]
[404156008,1769885446295,-299.0,0.00049315,120]
[404156009,1769885446304,-299.0,0.00049315,120]
[404156010,1769885446314,-299.0,0.00049315,120]
[404156011,1769885446323,-299.0,0.00049315,120]
[404156012,1769885446333,-299.0,0.00049315,120]
[404156013,1769885446342,-299.0,0.00049315,120]
[404156014,1769885446351,-299.0,0.00049315,120]
[404156015,1769885446360,-299.0,0.00049315,120]
[404156016,1769885446370,-299.0,0.00049315,120]
[404156017,1769885446382,-299.0,0.00049315,120]
[404156018,1769885446392,-1771.0,0.00049315,120]
[404156019,1769885446402,-299.0,0.00049315,120]
[404156020,1769885446411,-299.0,0.00049315,120]
[404156021,1769885446421,-299.0,0.00049315,120]
[404156022,1769885446431,-299.0,0.00049315,120]
[404156023,1769885446440,-299.0,0.00049315,120]
[404156024,1769885446449,-299.0,0.00049315,120]
[404156025,1769885446459,-299.0,0.00049315,120]
[404156026,1769885446468,-1196.0,0.00049315,120]
[404156027,1769885446478,-1196.0,0.00049315,120]
[404156028,1769885446487,-299.0,0.00049315,120]
[404156029,1769885446496,-299.0,0.00049315,120]
[404156030,1769885446506,-299.0,0.00049315,120]
[404156031,1769885446515,-299.0,0.00049315,120]
[404156032,1769885446524,-299.0,0.00049315,120]
[404156033,1769885446533,-299.0,0.00049315,120]
[404156034,1769885446542,-299.0,0.00049315,120]
[404156035,1769885446551,-299.0,0.00049315,120]
[404156036,1769885446560,-299.0,0.00049315,120]
[404156037,1769885446569,-299.0,0.00049315,120]
[404156038,1769885446579,-299.0,0.00049315,120]
[404156039,1769885446588,-299.0,0.00049315,120]
[404156040,1769885446598,-299.0,0.00049315,120]
[404156041,1769885446608,-299.0,0.00049315,120]
[404156042,1769885446618,-299.0,0.00049315,120]
[404156043,1769885446636,-299.0,0.00049315,120]
[404156044,1769885446645,-299.0,0.00049315,120]
[404156045,1769885446654,-299.0,0.00049315,120]
[404156046,1769885446664,-299.0,0.00049315,120]
[404156047,1769885446675,-196.0,0.00049323,120]
[404156048,1769885446684,-777.5687938,0.000496,120]
[404156049,1769885446694,-18912.04,0.000497,13]
[404156050,1769885446704,-208.71993713,0.0005,120]
[404156051,1769885446713,-4068.87358106,0.0005,90]
[404156052,1769885446723,-1506.82246691,0.0005,120]
[404156053,1769885446731,-225.07739433,0.0005,20]
[404156054,1769885446741,-9280.61456323,0.0005,120]
[404156055,1769885446750,-251.4838565,0.0005,120]
[404156056,1769885446759,-539.17140554,0.0005,10]
[404156057,1769885446769,-4621.42877297,0.0005,120]
[404156058,1769885446779,-329.08114919,0.0005,120]
[404156059,1769885446788,-556.12242355,0.0005,120]
[404156060,1769885446797,-441.16088777,0.0005,120]
[404156061,1769885446807,-221.0,0.0005,120]
[404156062,1769885446816,-199.0,0.0005,7]
[404156063,1769885446826,-40440.25170778,0.0005,120]
[404156064,1769885446835,-486.10360746,0.0005,120]
[404156065,1769885446844,-244.73131377,0.0005,120]
[404156066,1769885446853,-495.03681171,0.0005,30]
[404156067,1769885446863,-164.0,0.0005,120]
[404156068,1769885446872,-393.72,0.00050136,50]
[404156069,1769885446889,-1000.0,0.000503,60]
[404156070,1769885446900,-221.0,0.000504,120]
[404156071,1769885446909,-50613.02264105,0.000505,60]
[404156072,1769885446919,-1000.0,0.000506,60]
[404156073,1769885446929,-812.71615301,0.00050618,120]
[404156074,1769885446938,-2880.66733214,0.00050705,2]
[404156075,1769885446947,-221.0,0.000508,120]
[404156076,1769885446956,-1000.0,0.000509,60]
[404156077,1769885446966,-393.72,0.00050958,51]
[404156078,1769885446975,-346.83602419,0.0005099,90]
[404156079,1769885446984,-811.16,0.00051,30]
[404156080,1769885446994,-212.0,0.0005119,30]
[404156081,1769885447003,-1000.0,0.000512,60]
[404156082,1769885447012,-221.0,0.000512,120]
[404156083,1769885447022,-1000.0,0.000515,60]
[404156084,1769885447031,-221.0,0.000516,120]
[404156085,1769885447040,-167.0,0.00051777,120]
[404156086,1769885447049,-393.72,0.0005178,52]
[404156087,1769885447059,-196.0,0.00051789,120]
[404156088,1769885447068,-1000.0,0.000518,60]
[404156089,1769885447077,-1000.0,0.00051804,120]
[404156090,1769885447086,-1000.0,0.00051804,120]
[404156091,1769885447096,-1000.0,0.00051804,120]
[404156092,1769885447106,-674362.17427027,0.00052,120]
[404156093,1769885447115,-221.0,0.00052,120]
[404156094,1769885447126,-1000.0,0.000521,60]
[404156095,1769885447140,-766.08954176,0.00052274,2]
[404156096,1769885447149,-1000.0,0.000524,60]
[404156097,1769885447159,-221.0,0.000524,120]
[404156098,1769885447168,-212.0,0.0005249,30]
[404156099,1769885447178,-4999.999999,0.000525,120]
[404156100,1769885447188,-393.80679901,0.00052602,53]
[404156101,1769885447198,-848.74790363,0.00052618,120]
[404156102,1769885447207,-1000.0,0.000527,60]
[404156103,1769885447218,-221.0,0.000528,120]
[404156104,1769885447229,-321.80387069,0.00052899,2]
[404156105,1769885447239,-619.49,0.00052959,120]
[404156106,1769885447249,-1000.0,0.00053,60]
[404156107,1769885447258,-638.04120988,0.00053,120]
[404156108,1769885447268,-826.19388258,0.00053,31]
[404156109,1769885447278,-224.51,0.00053,2]
[404156110,1769885447288,-221.0,0.000532,120]
[404156111,1769885447298,-1000.0,0.000533,60]
[404156112,1769885447308,-1000.0,0.000536,60]
[404156113,1769885447317,-221.0,0.000536,120]
[404156114,1769885447327,-212.0,0.0005379,30]
[404156115,1769885447337,-2966.48749781,0.000538,120]
[404156116,1769885447346,-1000.0,0.000539,60]
[404156117,1769885447356,-559.10364073,0.00054,120]
[404156118,1769885447366,-688.77489613,0.00054,120]
[404156119,1769885447375,-221.0,0.00054,120]
[404156120,1769885447389,-160.45,0.00054,2]
[404156121,1769885447399,-1000.0,0.000542,60]
[404156122,1769885447408,-309.9984952,0.00054329,2]
[404156123,1769885447417,-3197.63779011,0.00054379,2]
[404156124,1769885447426,-221.0,0.000544,120]
[404156125,1769885447436,-1000.0,0.000545,60]
[404156126,1769885447445,-200.0,0.00054794,120]
[404156127,1769885447454,-200.0,0.00054794,120]
[404156128,1769885447463,-200.0,0.00054794,120]
[404156129,1769885447472,-200.0,0.00054794,120]
[404156130,1769885447482,-297.74307288,0.00054794,120]
[404156131,1769885447490,-1000.0,0.000548,60]
[404156132,1769885447500,-221.0,0.000548,120]
[404156133,1769885447508,-159.67628168,0.000549,120]
[404156134,1769885447518,-54575.60645614,0.000549,120]
[404156135,1769885447527,-213.83,0.00055,2]
[404156136,1769885447537,-1141.34002563,0.00055026,2]
[404156137,1769885447546,-212.0,0.0005509,120]
[404156138,1769885447556,-1000.0,0.000551,60]
[404156139,1769885447565,-221.0,0.000552,120]
[404156140,1769885447575,-1469.95825973,0.00055351,30]
[404156141,1769885447584,-1000.0,0.000554,60]
[404156142,1769885447593,-221.0,0.000556,120]
[404156143,1769885447602,-221.0,0.00056,120]
[404156144,1769885447612,-212.0,0.000564,120]
[404156145,1769885447622,-221.0,0.000564,120]
[404156146,1769885447638,-724.51588192,0.00056579,2]
[404156147,1769885447648,-221.0,0.000569,120]
[404156148,1769885447657,-221.0,0.000573,120]
[404156149,1769885447666,-212.0,0.000577,120]
[404156150,1769885447675,-221.0,0.000577,120]
[404156151,1769885447685,-169.8657665,0.00058,60]
[404156152,1769885447694,-221.0,0.000581,120]
[404156153,1769885447704,-221.0,0.000585,120]
[404156154,1769885447714,-4144.01279732,0.00058754,2]
[404156155,1769885447723,-5661.68643561,0.000589,120]
[404156156,1769885447733,-221.0,0.000589,120]
[404156157,1769885447742,-212.0,0.00059,120]
[404156158,1769885447752,-5580.52,0.00059,14]
[404156159,1769885447761,-221.0,0.000593,120]
[404156160,1769885447770,-423.84,0.00059637,30]
[404156161,1769885447779,-221.0,0.000597,120]
[404156162,1769885447789,-2238.28347665,0.000599,120]
[404156163,1769885447799,-1000.0,0.00059999,120]
[404156164,1769885447808,-221.0,0.000601,120]
[404156165,1769885447817,-488.48753825,0.00060267,2]
[404156166,1769885447827,-221.0,0.000605,120]
[404156167,1769885447836,-221.0,0.000609,120]
[404156168,1769885447845,-221.0,0.000613,120]
[404156169,1769885447855,-221.0,0.000617,120]
[404156170,1769885447864,-221.0,0.000621,120]
[404156171,1769885447873,-221.0,0.000625,120]
[404156172,1769885447887,-221.0,0.000629,120]
[404156173,1769885447896,-221.0,0.000633,120]
[404156174,1769885447906,-221.0,0.000637,120]
[404156175,1769885447916,-502.31572941,0.00063701,2]
[404156176,1769885447925,-221.0,0.000641,120]
[404156177,1769885447935,-221.0,0.000645,120]
[404156178,1769885447945,-221.0,0.000649,120]
[404156179,1769885447955,-221.0,0.000653,120]
[404156180,1769885447964,-483.8882761,0.00065426,2]
[404156181,1769885447973,-221.0,0.000657,120]
[404156182,1769885447982,-4023.14,0.000658,70]
[404156183,1769885447992,-4023.14,0.000658,70]
[404156184,1769885448002,-221.0,0.000661,120]
[404156185,1769885448011,-221.0,0.000665,120]
[404156186,1769885448020,-221.0,0.000669,120]
[404156187,1769885448030,-221.0,0.000673,120]
[404156188,1769885448040,-221.936,0.00067445,120]
[404156189,1769885448050,-221.0,0.000677,120]
[404156190,1769885448059,-221.0,0.000681,120]
[404156191,1769885448068,-1130.92400944,0.00068179,2]
[404156192,1769885448078,-221.0,0.000685,120]
[404156193,1769885448087,-150.0,0.00068831,30]
[404156194,1769885448098,-221.0,0.000689,120]
[404156195,1769885448108,-221.0,0.000693,120]
[404156196,1769885448118,-717.5,0.00069683,120]
[404156197,1769885448131,-221.0,0.000697,120]
[404156198,1769885448141,-500.0,0.00069999,120]
[404156199,1769885448151,-30082.10333675,0.0007,120]
[404156200,1769885448160,-221.0,0.000701,120]
[404156201,1769885448170,-221.0,0.000706,120]
[404156202,1769885448179,-221.0,0.00071,120]
[404156203,1769885448189,-221.0,0.000714,120]
[404156204,1769885448199,-221.0,0.000718,120]
[404156205,1769885448208,-221.0,0.000722,120]
[404156206,1769885448217,-221.0,0.000726,120]
[404156207,1769885448227,-221.0,0.00073,120]
[404156208,1769885448236,-221.0,0.000734,120]
[404156209,1769885448246,-221.0,0.000738,120]
[404156210,1769885448255,-5580.52,0.00074,14]
[404156211,1769885448265,-155.88,0.00074,14]
[404156212,1769885448274,-811.16,0.00074,30]
[404156213,1769885448283,-221.0,0.000742,120]
[404156214,1769885448293,-1000.0,0.00074399,120]
[404156215,1769885448302,-221.0,0.000746,120]
[404156216,1769885448311,-221.0,0.00075,120]
[404156217,1769885448321,-213.83,0.00075,2]
[404156218,1769885448331,-221.0,0.000754,120]
[404156219,1769885448340,-11887.37257059,0.00075444,120]
[404156220,1769885448349,-868.42229023,0.00075711,2]
[404156221,1769885448359,-221.0,0.000758,120]
[404156222,1769885448368,-221.0,0.000762,120]
[404156223,1769885448380,-221.0,0.000766,120]
[404156224,1769885448389,-200.0,0.00076949,120]
[404156225,1769885448398,-262.0,0.00077,120]
[404156226,1769885448407,-164.0,0.00077,120]
[404156227,1769885448417,-681.58396702,0.0008,50]
[404156228,1769885448426,-215.0,0.0008,120]
[404156229,1769885448435,-1753.44384961,0.0008188,120]
[404156230,1769885448445,-150.0,0.00082309,30]
[404156231,1769885448454,-233.06255167,0.00083481,2]
[404156232,1769885448464,-51757.0381935,0.000835,120]
[404156233,1769885448473,-221.935,0.00088723,120]
[404156234,1769885448482,-4091.0,0.0009,116]
[404156235,1769885448569,-1355.55291866,0.00091155,2]
[404156236,1769885448579,-150.0,0.00093511,30]
[404156237,1769885448589,-6151.48618555,0.0009488,60]
[404156238,1769885448599,-5580.52,0.00097,30]
[404156239,1769885448608,-6068.37460767,0.000975,30]
[404156240,1769885448618,-423.82,0.00099197,120]
[404156241,1769885448630,-1000.0,0.00099999,120]
[404156242,1769885448640,-871.52070148,0.001,120]
[404156243,1769885448649,-543.25804306,0.001,120]
[404156244,1769885448659,-150.0,0.00107443,30]
[404156245,1769885448669,-221.935,0.0011,120]
[404156246,1769885448679,-166.89899801,0.00115,2]
[404156247,1769885448689,-3873.81,0.0012,103]
[404156248,1769885448699,-3873.81,0.0012,103]
[404156249,1769885448709,-3949.0,0.001202,62]
[404156250,1769885448718,-3859.721645,0.001202,62]
[404156251,1769885448728,-150.0,0.00120314,30]
[404156252,1769885448737,-150.0,0.00133184,30]
[404156253,1769885448746,-399.235395,0.00136986,120]
[404156254,1769885448755,-399.235395,0.00144196,120]
[404156255,1769885448765,-162.8,0.00146055,30]
[404156256,1769885448775,-154603.25794639,0.0015,120]
[404156257,1769885448784,-399.235395,0.00151406,120]
[404156258,1769885448793,-546.82243782,0.00151956,120]
[404156259,1769885448802,-399.235395,0.00158616,120]
[404156260,1769885448812,-186.06,0.00158926,30]
[404156261,1769885448822,-399.235395,0.00165826,120]
[404156262,1769885448831,-2151.0,0.00168044,120]
[404156263,1769885448840,-630.0,0.00168044,120]
[404156264,1769885448849,-203.757,0.00168044,120]
[404156265,1769885448859,-811.16,0.0017,60]
[404156266,1769885448868,-213.83,0.0017,2]
[404156267,1769885448879,-2151.0,0.00171044,120]
[404156268,1769885448889,-630.0,0.00171044,120]
[404156269,1769885448898,-209.32,0.00171796,30]
[404156270,1769885448907,-399.235395,0.00173035,120]
[404156271,1769885448922,-2151.0,0.00174044,120]
[404156272,1769885448931,-630.0,0.00174044,120]
[404156273,1769885448940,-2151.0,0.00177044,120]